Cogmind - Beta 16.1 @@@ ROGUE MODE // 2026.04.28 @ 00:02:47 Player: shockman27 Result: Destroyed by EXE-6 with Concept XC Strikerail Performance ------------- Evolutions (8) 4000 Regions Visited (23) 4600 Robots Destroyed (246) 1230 Value Destroyed (9550) 9550 Prototype IDs (222) 4440 Alien Tech Used (8) 1600 Bonus (16323) 16323 TOTAL SCORE: 41743 Bonus ------- High Alert Combat Kills 1091 Follower Combat Kills 862 Registered with UFD 300 Met Optimus in HQ 500 Met Data Miner 300 Used Data Conduit 3000 Met Warlord at Base 500 MAIN.C Attacked Warlord 500 Warlord Defense Kills 1904 Found Hidden Lab 3000 Decrypted A0 Command 3000 Scanned by Researcher 500 Pursued by Intercept 1000 Friendly Fire -134 Cogmind --------- Core Integrity 0/1450 Matter 58/300 Energy 315/700 System Corruption 25% Temperature Cool (0) Movement Core (50) Location -2/Protoforge Parts ------- > --- POWER (2) -------- (None) > --- PROPULSION (6) --- (None) > --- UTILITY (11) ----- Experimental Energy Well Experimental Targeting Computer Graphene Brace > --- WEAPON (4) ------- (None) > --- INVENTORY (5) ---- Advanced Sensor Array Subatomic Replicator Core Cannon Peak State ------------ > --- POWER ------------ Light Antimatter Reactor Particle Reactor > --- PROPULSION ------- Biometal Medium Treads Biometal Medium Treads Armored Heavy Treads Armored Heavy Treads > --- UTILITY ---------- Advanced Heat Sink Medium Storage Unit Long-range Sensor Array Advanced Signal Interpreter Experimental Cloaking Device Centrium Heavy Armor Plating Graphene Brace Quantum Router > --- WEAPON ----------- Quantum Rifle Coil Gun Coil Gun Vibroblade > --- INVENTORY -------- Light Antimatter Reactor Biometal Medium Treads Experimental Energy Well Core Reset Matrix Vortex Shotgun Matter Neutralizer Coil Gun Linear Accelerator Heavy Shock Bomb Launcher Fusion Bomb Launcher [Rating: 160] Favorites ----------- Power Cooled Ion Engine Engine Cooled Ion Engine Power Core Light Fission Core Reactor Light Antimatter Reactor Propulsion Aluminum Leg Treads Biometal Medium Treads Leg Aluminum Leg Wheel Compact Wheel Hover Unit Gravmag Array Flight Unit Impulse Thruster Array Utility Medium Storage Unit Device Experimental Sensor Array Storage Medium Storage Unit Processor Enhanced Optical Array Hackware Quantum Router Protection Makeshift Light Armor Plating Weapon Advanced Beam Cannon Energy Gun Vortex Shotgun Energy Cannon Advanced Beam Cannon Ballistic Gun Coil Gun Ballistic Cannon Linear Accelerator Launcher Heavy Missile Launcher Special Weapon Mining Laser Impact Weapon Heavy Hammer Slashing Weapon Power Sword Build | -11 -10 -10 -9 -9 -9 -9 -6 -6 -6 -6 -5 -5 -5 -5 -5 -4 -4 -4 -4 -3 -2 -2 -2 ------- Run | Yrd Mat Min Mat Sto Rec Scr Fac Low Low Dat Pro Fac Upp Upp War Pro Fac Arm Lab Res Res Qua Frg Slots Evolved 16 | . . . 2 . . . 6 . . . . 2 . . . . 2 . . 2 2 . . Power 1 | . . . . . . . . . . . . 1 . . . . . . . . . . . Propulsion 4 | . . . 1 . . . 1 . . . . 1 . . . . 1 . . . . . . Utility 9 | . . . 1 . . . 5 . . . . . . . . . 1 . . . 2 . . Weapon 2 | . . . . . . . . . . . . . . . . . . . . 2 . . . Parts Attached 204 | 8 23 3 24 9 1 7 14 3 1 1 4 9 6 1 16 . 4 7 4 49 6 4 . Power 26 | 1 3 . 2 2 . . 1 . . . . 1 1 1 2 . . 1 . 9 2 . . Engine 13 | 1 3 . 2 2 . . . . . . . . 1 . . . . 1 . 3 . . . Core 4 | . . . . . . . 1 . . . . 1 . 1 . . . . . 1 . . . Reactor 9 | . . . . . . . . . . . . . . . 2 . . . . 5 2 . . Propulsion 64 | 2 7 1 10 3 . 3 . 1 1 1 2 5 2 . 7 . 2 2 . 11 3 1 . Treads 12 | . 2 . . . . . . . . . 1 . . . . . . . . 9 . . . Leg 37 | 2 5 1 10 3 . 3 . 1 1 1 1 . . . 5 . 2 2 . . . . . Wheel 4 | . . . . . . . . . . . . . 2 . . . . . . 2 . . . Hover 7 | . . . . . . . . . . . . 5 . . 2 . . . . . . . . Flight 4 | . . . . . . . . . . . . . . . . . . . . . 3 1 . Utility 67 | 2 4 2 7 2 1 3 9 1 . . 2 3 2 . 3 . 1 3 2 18 1 1 . Device 34 | 1 2 1 3 1 . 1 6 . . . 2 2 1 . 1 . . 3 . 9 1 . . Storage 8 | 1 1 . 2 . . 1 . . . . . 1 . . . . . . . 2 . . . Processor 13 | . 1 . 2 1 . . 2 . . . . . 1 . 1 . . . . 4 . 1 . Hackware 4 | . . . . . 1 . 1 . . . . . . . 1 . . . 1 . . . . Protection 8 | . . 1 . . . 1 . 1 . . . . . . . . 1 . 1 3 . . . Artifact . | . . . . . . . . . . . . . . . . . . . . . . . . Weapon 47 | 3 9 . 5 2 . 1 4 1 . . . . 1 . 4 . 1 1 2 11 . 2 . Energy Gun 10 | 2 1 . 2 . . . 1 . . . . . . . 2 . . . 1 1 . . . Energy Cannon 10 | . 4 . . 1 . 1 1 . . . . . . . . . 1 . 1 . . 1 . Ballistic Gun 13 | 1 3 . 2 . . . . . . . . . 1 . 1 . . . . 5 . . . Ballistic Cannon 1 | . . . . . . . . . . . . . . . . . . . . 1 . . . Launcher 6 | . . . 1 . . . . 1 . . . . . . 1 . . . . 3 . . . Special Weapon 1 | . 1 . . . . . . . . . . . . . . . . . . . . . . Impact Weapon 2 | . . . . 1 . . 1 . . . . . . . . . . . . . . . . Slashing Weapon 4 | . . . . . . . 1 . . . . . . . . . . 1 . 1 . 1 . Piercing Weapon . | . . . . . . . . . . . . . . . . . . . . . . . . Special Melee Weapon . | . . . . . . . . . . . . . . . . . . . . . . . . Unidentified Prototypes 25 | . 1 1 4 1 . . 3 . . . . . . . 2 . . 1 7 1 . 4 . Corrupted Parts 3 | . . . . . 1 . . . . . . . . . . . . 1 . 1 . . . System Corruption 15 | . . . . . 1 . . . . . . . . . . . . 8 . 6 . . . Parts Lost 75 | . . . . . . . . . . 2 3 9 . 1 1 . 8 16 . 21 1 7 6 Power 13 | . . . . . . . . . . . . 2 . 1 . . . 2 . 5 1 2 . Propulsion 21 | . . . . . . . . . . 1 3 2 . . . . 3 5 . 4 . . 3 Utility 29 | . . . . . . . . . . 1 . 4 . . 1 . 4 7 . 7 . 2 3 Weapon 12 | . . . . . . . . . . . . 1 . . . . 1 2 . 5 . 3 . Highest Loss Streak 12 | . . . . . . . . . . 2 2 9 . 1 1 . 8 12 . 7 1 7 4 To Critical Strikes 1 | . . . . . . . . . . . . 1 . . . . . . . . . . . Average Backups 9 | 4 9 10 10 9 9 9 9 10 10 10 9 9 7 9 9 9 9 8 4 8 4 4 3 Power . | . 1 1 1 1 1 . . 1 1 1 1 . . . . 1 1 . . . . . . Propulsion . | 2 2 1 1 1 2 1 . . 1 1 . . . . . . . . . . . . . Utility 3 | . 3 4 4 4 3 4 4 5 5 5 4 4 3 5 5 5 4 3 2 1 . . 1 Weapon 3 | . 2 2 3 2 3 2 2 2 2 2 2 2 2 3 3 3 3 2 2 4 2 1 . Tool/Special . | . . . . . . . . . . . . . . . . . . . . . . . . Unused Backups 33 | . 4 . 10 4 . 3 1 . . . . 1 . . 2 . 2 1 1 1 1 . 2 Power 6 | . . . 2 1 . 1 . . . . . . . . . . 1 . . 1 . . . Propulsion 5 | . 3 . 1 . . 1 . . . . . . . . . . . . . . . . . Utility 11 | . 1 . 3 2 . . . . . . . . . . 1 . 1 1 1 . . . 1 Weapon 8 | . . . 4 1 . 1 1 . . . . 1 . . . . . . . . . . . Tool/Special 3 | . . . . . . . . . . . . . . . 1 . . . . . 1 . 1 Average Slot Usage (%) 89 | . 100 100 96 99 99 97 99 100 100 98 96 82 70 81 83 94 89 64 12 77 51 52 27 Engine 6 | . 14 14 11 11 11 10 . . . . . . 3 4 . . . . . 1 . . . Core 1 | . . . . . . . 5 6 6 6 6 8 . . 2 . . . . . . . . Reactor 1 | . . . . . . . . . . . . . . . 4 5 5 4 . 6 3 3 . Treads 2 | . . . . . . . . . . . 4 1 . . . . . . . 17 2 . . Leg 21 | . 27 28 33 33 33 31 25 26 26 25 17 2 . . 2 29 26 16 . . . . . Hover 1 | . . . . . . . . . . . . 11 11 11 14 . . . . . . . . Device 15 | . 14 14 12 10 10 11 25 26 26 25 25 26 21 23 21 17 20 18 5 12 14 14 6 Storage 8 | . 14 14 11 11 11 10 6 6 6 6 6 5 8 5 5 5 5 4 . 5 5 4 4 Processor 7 | . . . 8 11 11 11 8 13 13 13 13 10 9 11 10 11 10 9 . 4 4 6 8 Hackware 1 | . . . . . . . 3 . . . . . . . 2 5 5 . 2 4 4 4 2 Protection 1 | . . . 1 . . . 5 6 6 6 6 1 . . 1 5 4 . . 5 . . . Energy Gun 1 | . 1 . . . . . 1 . . . 5 3 . . . 10 5 3 . 2 1 . . Energy Cannon 10 | . 15 11 17 20 22 17 7 5 6 6 6 1 . . . . 2 1 . . 2 4 . Ballistic Gun 2 | . 7 10 1 . . . . . . . . . 1 4 . . 1 . . 6 . . . Slashing Weapon 1 | . . . . . . . 1 5 5 6 . 3 5 4 1 . . 2 4 1 . . . Peak Build Rating 160 | 7 12 18 20 26 26 32 63 67 68 68 66 87 62 66 115 107 114 107 33 160 137 153 101 Average Rating 52 | 5 10 10 17 21 25 26 57 64 67 66 61 75 56 61 83 106 109 85 27 135 106 132 63 On Entrance 51 | . 7 11 10 19 26 26 26 63 66 68 58 60 46 62 56 103 104 72 21 32 77 120 101 Avg Prop Armor Cover (%) 8 | . . . . . . . . . . . 6 7 13 6 7 . . . . 3 . 12 . Naked Turns . | . . . . . . . . . . . . . . . . . . . . . . . . Heaviest Build 98 | 14 24 23 39 28 27 34 45 41 41 37 48 41 28 32 70 71 78 72 5 98 66 41 13 Greatest Support 200 | 20 40 20 30 30 30 38 48 56 58 58 48 51 32 31 100 100 120 110 3 200 56 48 48 Greatest Overweight (x) 5 | 2 1 1 1 . . 3 1 . . . 2 5 1 2 4 . . 1 1 1 4 . 4 Average Overweight (x) . | . . . . . . . . . . . . . . . . . . . . . . . . Largest Inventory Capacity 15 | 8 10 10 15 10 10 10 10 10 10 10 10 10 10 10 10 10 10 10 5 10 10 5 5 Average Capacity 9 | 7 9 10 10 10 10 9 10 10 10 10 10 10 10 10 10 10 10 9 5 8 7 5 5 Most Carried 14 | 8 10 10 14 10 10 10 10 10 10 10 10 10 9 10 10 10 10 10 5 10 10 5 5 Average Carried 9 | 4 9 9 10 9 9 9 9 10 10 9 9 9 7 9 9 9 9 8 4 8 5 4 3 Final Capacity 10 | 8 10 10 10 10 10 10 10 10 10 10 10 10 10 10 10 10 10 5 5 10 5 5 5 Final Carried 10 | 8 10 10 10 10 10 10 10 10 10 9 10 7 9 10 9 10 10 4 5 5 5 5 4 Class Distribution -------------------- 20% | Commander-Mutant 18% | Scavenger-Mutant 14% | Mutant 9% | Infiltrator-Mutant 8% | Hacker-Mutant 7% | Infiltrator-Assassin 5% | Scavenger-Tank 5% | Infiltrator-Skirmisher Dominant Class ---------------- Scavenger-Mutant | -10/Materials Scavenger-Mutant | -10/Mines Mutant | -9/Materials Mutant | -9/Storage Commander-Mutant | -9/Recycling Commander-Mutant | -9/Scraptown Infiltrator-Skirmisher | -6/Factory Infiltrator-Assassin | -6/Lower Caves Derelict-Assassin | -6/Lower Caves Infiltrator-Assassin | -6/Data Miner Infiltrator-Mutant | -5/Proximity Caves Infiltrator-Mutant | -5/Factory Infiltrator-Assassin | -5/Upper Caves Infiltrator-Ninja | -5/Upper Caves Infiltrator-Mutant | -5/Warlord Hacker-Mutant | -4/Proximity Caves Hacker-Mutant | -4/Factory Infiltrator-Mutant | -4/Armory Hacker-Mutant | -4/Lab Scavenger-Tank | -3/Research Hacker-Mutant | -2/Research Hacker-Mutant | -2/Quarantine Hacker-Mutant | -2/Protoforge Resources | -11 -10 -10 -9 -9 -9 -9 -6 -6 -6 -6 -5 -5 -5 -5 -5 -4 -4 -4 -4 -3 -2 -2 -2 ----------- Run | Yrd Mat Min Mat Sto Rec Scr Fac Low Low Dat Pro Fac Upp Upp War Pro Fac Arm Lab Res Res Qua Frg Matter Collected 5449 | 284 363 143 555 190 35 174 206 241 57 . 207 113 103 56 660 . 85 185 . 1659 133 . . Remotely . | . . . . . . . . . . . . . . . . . . . . . . . . Salvage Created 11082 | 67 638 143 1867 1222 303 173 292 164 141 . 373 73 300 121 626 . 414 425 . 3457 190 93 . Parts 511 | 9 36 16 92 62 15 13 8 4 . . 9 4 3 2 21 . 16 21 . 171 7 2 . Haulers Intercepted 13 | . 2 . 5 6 . . . . . . . . . . . . . . . . . . . Recyclers Shooed 8 | . 1 . 3 . 2 . . . . . . . . . . . . . . 2 . . . Parts Field Recycled . | . . . . . . . . . . . . . . . . . . . . . . . . Retrieved Matter . | . . . . . . . . . . . . . . . . . . . . . . . . Parts Self-Destructed 17 | . . . . . . . . 4 2 . 7 . . 1 . 3 . . . . . . . Prevented 2 | . . . . . . . . 2 . . . . . . . . . . . . . . . Parts Restored . | . . . . . . . . . . . . . . . . . . . . . . . . Kills | -11 -10 -10 -9 -9 -9 -9 -6 -6 -6 -6 -5 -5 -5 -5 -5 -4 -4 -4 -4 -3 -2 -2 -2 ------- Run | Yrd Mat Min Mat Sto Rec Scr Fac Low Low Dat Pro Fac Upp Upp War Pro Fac Arm Lab Res Res Qua Frg Combat Hostiles Destroyed 174 | . 10 7 33 11 1 3 3 3 . . 7 1 . 2 16 . 6 15 . 51 5 . . Melee 5 | . . . . . . . . . . . . 1 . . . . . . . 4 . . . Guns 32 | . 4 1 4 . . . 1 . . . . . . 2 . . 3 1 . 15 1 . . Cannons 56 | . 6 6 21 9 1 3 2 . . . 1 . . . . . . 3 . 4 . . . AOE 70 | . . . 5 . . . . 3 . . 6 . . . 16 . 3 11 . 22 4 . . Classes Destroyed 21 | 1 4 1 3 . 1 3 1 . . . . . 1 . 4 . . . . 2 . . . Worker 9 | . . . 5 2 . . . . . . . . . . . . . . . 2 . . . Builder 7 | . . . . . 1 . . . . . . 1 . . . . . . . 5 . . . Tunneler 7 | 3 . 2 . . . . . . . . . . . . . . . . . 2 . . . Hauler 13 | . 2 . 5 6 . . . . . . . . . . . . . . . . . . . Recycler 19 | . 1 . 4 3 3 . 1 . . . . . . . . . . . . 5 1 1 . Mechanic 2 | . . . . . . . . . . . . . . . 1 . . . . 1 . . . Operator 7 | . . . 1 5 . . . . . . . . . . . . . . . 1 . . . Watcher 8 | . 1 . 5 2 . . . . . . . . . . . . . . . . . . . Swarmer 49 | . . 7 12 . . . . 3 . . 5 . . 2 . . . 5 . 10 5 . . Cutter 2 | . . . . . . . . . . . . . . . . . . . . 2 . . . Grunt 60 | . 10 . 11 8 . . . . . . 1 . . . 9 . 6 6 . 9 . . . Brawler 2 | . . . . . . . . . . . . . . . 1 . . . . 1 . . . Protector 4 | . . . . . . . . . . . . . . . 4 . . . . . . . . Sentry 19 | . . . 10 3 1 . 1 . . . 1 . . . . . . . . 3 . . . Hunter 10 | . . . . . . . . . . . . . . . . . . . . 10 . . . Programmer 20 | . . . . . . . 2 . . . . . . . . . . 4 . 14 . . . Tracker 2 | . . . . . . . . . . . . 1 . . . . . . . 1 . . . Combat Programmer 1 | . . . . . . . . . . . . . . . . . . . . 1 . . . Striker 2 | . . . . . . . . . . . . . . . 2 . . . . . . . . Explorer 1 | . . . . . . 1 . . . . . . . . . . . . . . . . . Ranger 1 | . . . . . . 1 . . . . . . . . . . . . . . . . . Scrapper 1 | . . . . . . 1 . . . . . . . . . . . . . . . . . Decomposer 1 | . . . . . . . . . . . . . 1 . . . . . . . . . . Packrat 3 | . . . . . . . . . . . . . 3 . . . . . . . . . . Samaritan 1 | . . . . . . . . . . . . . 1 . . . . . . . . . . Best Kill Streak 8 | 2 2 3 6 6 2 3 1 3 . . 4 2 . 2 6 . 4 5 . 8 5 1 . Combat Bots Only 6 | . 2 3 5 3 1 3 1 3 . . 4 1 . 2 6 . 4 5 . 6 5 . . Max Kills in Single Turn 4 | 1 2 1 3 2 2 1 1 3 . . 2 1 1 1 3 . 2 3 . 3 4 1 . Gunslinging . | . . . . . . . . . . . . . . . . . . . . . . . . Exploded 4 | . . . 3 . . . . 3 . . 2 . . . 2 . 1 3 . 3 4 . . Melee 1 | . . . . . . . . . . . . 1 . . . . . . . 1 . . . Uniques/NPCs Destroyed . | . . . . . . . . . . . . . . . . . . . . . . . . Combat | -11 -10 -10 -9 -9 -9 -9 -6 -6 -6 -6 -5 -5 -5 -5 -5 -4 -4 -4 -4 -3 -2 -2 -2 -------- Run | Yrd Mat Min Mat Sto Rec Scr Fac Low Low Dat Pro Fac Upp Upp War Pro Fac Arm Lab Res Res Qua Frg Hostile Shots Fired 1286 | . 43 30 98 21 1 13 39 5 . 18 36 61 10 17 10 . 77 107 . 497 34 116 53 Missed 390 | . 20 5 36 7 . 3 17 1 . 9 11 3 4 3 5 . 19 27 . 142 12 49 17 Hits 896 | . 23 25 62 14 1 10 22 4 . 9 25 58 6 14 5 . 58 80 . 355 22 67 36 Melee 2 | . . . . . . . . . . . . . . . . . . 1 . 1 . . . Projectile 894 | . 23 25 62 14 1 10 22 4 . 9 25 58 6 14 5 . 58 79 . 354 22 67 36 AOE 1 | . . . . . . . . . . . . . . . . . . 1 . . . . . Critical Strikes 43 | . 1 1 1 . . . 1 . . . 1 5 . 1 . . . 7 . 21 1 1 2 Actively Blocked 9 | . . . . . . . . . . . . . . . . . . . . 6 . 1 2 Part Disruptions 7 | . . . . . . . . . . 1 . . . . . . . . . 3 . 3 . Damage Taken 18397 | . 292 198 696 203 14 171 215 92 . 410 502 1318 119 209 247 . 1274 1880 . 7418 505 1392 1242 Core 3640 | . 41 43 116 17 . . 28 . . 43 58 441 44 30 83 . 93 845 . 418 139 350 851 Absorbed by Shields 378 | . . . . . . . . . . . 60 . . . . . . 294 . . . 24 . Reduced by Siege Mode 32 | . . . . . . . . . . . . . . . . . . . . 32 . . . Ignored by Resistances 272 | . . . . . . . 31 . . . . . . . . . . 89 . 152 . . . Regen/Repaired (Parts) 624 | . 27 . 89 150 . . 95 . . . . . . . 263 . . . . . . . . Core Remaining (%) 66 | 100 . 66 . . . 66 . . . . 84 . . . . 40 . . 42 67 . . . Volleys Fired 575 | 4 69 25 98 56 8 6 39 6 4 . 35 3 . 4 29 1 17 38 . 102 19 10 2 Largest 4 | 2 2 2 2 2 2 2 2 1 1 . 2 1 . 1 1 1 2 1 . 4 1 1 1 Hottest 300 | 70 136 100 136 136 124 143 115 39 35 . 115 35 . 33 60 60 105 105 . 299 105 300 300 Shots Fired 962 | 8 119 40 191 112 16 12 50 6 5 . 44 3 . 4 29 1 27 38 . 226 19 10 2 Gun 293 | 8 57 15 17 . . . 9 . . . 18 . . 4 4 1 20 4 . 131 5 . . Cannon 548 | . 45 15 169 112 16 12 41 4 5 . 21 3 . . . . 7 27 . 47 12 10 2 Launcher 91 | . . . 2 . . . . 2 . . 5 . . . 25 . . 7 . 48 2 . . Special 30 | . 17 10 3 . . . . . . . . . . . . . . . . . . . . Kinetic 211 | 4 47 15 17 . . . . . . . . . . 4 . . 10 . . 114 . . . Thermal 574 | 4 64 25 172 77 8 6 50 4 5 . 39 3 . . . . 7 27 . 59 12 10 2 Explosive 61 | . . . 2 . . . . 2 . . 5 . . . 25 . . 7 . 18 2 . . Electromagnetic 87 | . 8 . . 35 8 6 . . . . . . . . . . . . . 30 . . . Entropic 29 | . . . . . . . . . . . . . . . 4 1 10 4 . 5 5 . . Robot Hit Streak 29 | 5 6 4 10 12 2 9 8 . . . 18 . . 5 7 . 6 5 . 29 3 . . Robot Miss Streak 6 | . 5 4 6 4 3 1 2 . . . 4 . . 1 2 . 4 3 . 5 1 3 . Penetration Max 2 | . . . . . . . . . . . . . . . . . 1 . . 2 . 1 . Secondary Targets 2 | . 1 . . . . . . . . . . . . . . . . . . 1 . . . Max Gunslinging Chain 1 | . 1 . . . . . . . . . . . . . . . . . . 1 . . . Shots Hit Robots 537 | 5 56 15 113 71 6 9 20 2 2 1 22 7 6 4 16 . 9 21 . 149 3 . . Core Hits 416 | 3 21 9 51 27 5 4 7 5 2 . 14 3 2 2 77 . 14 33 . 129 8 . . Critical Kills 7 | . . . 2 1 . . . . . . . . . . . . 1 . . 3 . . . Critical Parts Destroyed 6 | . . . . . . . . . . . . . . 1 . . 1 . . 1 1 2 . Critical Strikes 21 | 1 . . 2 1 . . . . . . . 1 . 1 . . 2 . . 10 1 2 . Burn 1 | 1 . . . . . . . . . . . . . . . . . . . . . . . Meltdown 4 | . . . 2 1 . . . . . . . . . . . . . . . 1 . . . Destroy 8 | . . . . . . . . . . . . . . 1 . . 2 . . 3 . 2 . Blast 3 | . . . . . . . . . . . . . . . . . . . . 3 . . . Sever 4 | . . . . . . . . . . . . 1 . . . . . . . 3 . . . Detonate 1 | . . . . . . . . . . . . . . . . . . . . . 1 . . Melee Attacks 175 | . . . . 7 . . 6 9 3 21 . 23 18 10 . 4 1 17 10 46 . . . Impact 13 | . . . . 7 . . 6 . . . . . . . . . . . . . . . . Slashing 162 | . . . . . . . . 9 3 21 . 23 18 10 . 4 1 17 10 46 . . . Piercing . | . . . . . . . . . . . . . . . . . . . . . . . . Sneak Attacks 12 | . . . . . . . . . . 1 . 2 5 . . . . . . 4 . . . Combat Hostiles . | . . . . . . . . . . . . . . . . . . . . . . . . Follow-up Attacks . | . . . . . . . . . . . . . . . . . . . . . . . . Damage Inflicted 28785 | 58 844 328 2745 1716 231 223 732 267 131 85 1182 428 534 141 4490 . 885 2051 . 10387 887 440 . Guns 4559 | 58 331 46 110 . . . 188 . . . 349 . . 68 273 . 329 115 . 2547 145 . . Cannons 7620 | . 502 221 2298 1684 195 223 393 . . . 287 . . . . . . 418 . 959 . 440 . Explosions 13109 | . . . 314 26 . . . 132 . . 546 . . . 4217 . 547 1361 . 5224 742 . . Melee 3311 | . . . . . . . 146 135 131 85 . 428 534 73 . . . 157 . 1622 . . . Ramming 138 | . 11 13 23 6 36 . 5 . . . . . . . . . 9 . . 35 . . . Kinetic 2508 | 9 221 46 110 . . . . . . . . . . 68 . . 50 . . 2004 . . . Thermal 8463 | 49 521 269 2298 1009 145 82 581 . . . 636 . . . . . 343 418 . 1621 51 440 . Explosive 10648 | . . . 314 . . . . 132 . . 546 . . . 4217 . 204 1361 . 3183 691 . . Electromagnetic 2640 | . 91 . . 701 50 141 . . . . . . . . . . . . . 1657 . . . Impact 146 | . . . . . . . 146 . . . . . . . . . . . . . . . . Slashing 3165 | . . . . . . . . 135 131 85 . 428 534 73 . . . 157 . 1622 . . . Piercing . | . . . . . . . . . . . . . . . . . . . . . . . . Entropic 1077 | . . . . . . . . . . . . . . . 273 . 279 115 . 265 145 . . Highest Corruption 35 | . . . . . 2 . 2 2 2 2 2 10 13 13 13 . . 21 21 35 . 13 25 Average Corruption 8 | . . . . . 1 . 1 2 2 2 2 2 13 13 13 . . 13 21 16 . 8 19 Corruption Purged . | . . . . . . . . . . . . . . . . . . . . . . . . Corruption Blocked . | . . . . . . . . . . . . . . . . . . . . . . . . Effects 207 | . . . . . 7 . 3 7 7 3 12 4 19 8 . . . 29 9 78 . 8 13 Message Errors 52 | . . . . . 1 . . . 3 . 1 2 5 3 . . . 7 1 25 . 1 3 Matter Fused 59 | . . . . . 2 . 1 5 . 2 6 . 6 2 . . . 5 5 20 . 4 1 Heat Flow Errors 15 | . . . . . . . . 2 . . 1 1 . . . . . . 1 8 . 1 1 Energy Discharges 24 | . . . . . 4 . 1 . . . 2 . 3 1 . . . 5 1 7 . . . Parts Rejected 2 | . . . . . . . . . . . . . . . . . . . . 2 . . . Data Loss (minor) 21 | . . . . . . . . . 3 1 . 1 1 1 . . . 4 1 8 . . 1 Data Loss (major) 6 | . . . . . . . . . . . 1 . 1 . . . . 2 . 2 . . . Misfires 4 | . . . . . . . . . 1 . 1 . . . . . . 1 . 1 . . . Alerts 7 | . . . . . . . 1 . . . . . 3 . . . . . . 2 . . 1 Misdirections 14 | . . . . . . . . . . . . . . 1 . . . 4 . 1 . 2 6 Weapon Failures 3 | . . . . . . . . . . . . . . . . . . 1 . 2 . . . Overload Shots . | . . . . . . . . . . . . . . . . . . . . . . . . Overflow Damage 1447 | . 2 3 32 82 . . 48 53 . 25 12 132 212 32 84 . 66 21 . 412 26 205 . Projectiles 402 | . 2 3 17 82 . . 12 . . . 5 . . . . . . 8 . 68 . 205 . Explosions 376 | . . . 15 . . . . . . . 7 . . . 84 . 66 . . 178 26 . . Melee 669 | . . . . . . . 36 53 . 25 . 132 212 32 . . . 13 . 166 . . . Knockbacks 8 | . . . 1 . . . 2 . . . . . . . . . . . . 5 . . . Impact 3 | . . . 1 . . . 2 . . . . . . . . . . . . . . . . Kinetic 5 | . . . . . . . . . . . . . . . . . . . . 5 . . . Secondary . | . . . . . . . . . . . . . . . . . . . . . . . . Self-Inflicted Damage 759 | . . . 10 . . . . 30 . . 36 . . . 38 . 113 65 . 419 48 . . Shots 29 | . . . 1 . . . . 1 . . 1 . . . 1 . 1 1 . 21 2 . . Rammed 2 | . . . . . . . . . . . . . . . . . . . . 2 . . . Targets Rammed 16 | . 2 2 2 1 5 . 1 . . . . . . . . . 1 . . 2 . . . Kicked 14 | . 2 2 2 1 5 . 1 . . . . . . . . . 1 . . . . . . Crushed . | . . . . . . . . . . . . . . . . . . . . . . . . Highest Temperature 637 | 60 295 210 51 276 96 329 7 233 . . 54 72 . . 60 14 112 210 61 637 32 120 128 Average Temperature 73 | 25 54 52 9 74 31 176 4 101 . . 29 48 . . 30 7 30 98 39 147 12 70 69 Received Heat Transfer 1621 | . 186 . 189 66 . 96 36 . . . 36 . 54 . 45 . 186 129 . 499 27 . 72 Effects 14 | . . . . . . . . . . . . . . . . . . . . 14 . . . Shutdowns 5 | . . . . . . . . . . . . . . . . . . . . 5 . . . Interference 5 | . . . . . . . . . . . . . . . . . . . . 5 . . . Damage (minor) 4 | . . . . . . . . . . . . . . . . . . . . 4 . . . Siege Activations 5 | . . . . . . . . . . . . . . . . . . . . 5 . . . Total Turns 56 | . . . . . . . . . . . . . . . . . . . . 56 . . . Longest Duration 28 | . . . . . . . . . . . . . . . . . . . . 28 . . . Martial Activations . | . . . . . . . . . . . . . . . . . . . . . . . . Shielding Activations . | . . . . . . . . . . . . . . . . . . . . . . . . Robots Disrupted . | . . . . . . . . . . . . . . . . . . . . . . . . Combat Hostiles . | . . . . . . . . . . . . . . . . . . . . . . . . Robots Corrupted 4 | . . . . . . . . . . . . . . . . . . . . 4 . . . Combat Hostiles 4 | . . . . . . . . . . . . . . . . . . . . 4 . . . Parts Fried 17 | . . . . 4 . . . . . . . . . . . . . . . 13 . . . Impact Corruptions 2 | . . . . . . . 2 . . . . . . . . . . . . . . . . Robots Melted 6 | . . . 3 2 . . . . . . . . . . . . . . . 1 . . . Combat Hostiles 6 | . . . 3 2 . . . . . . . . . . . . . . . 1 . . . Parts Melted 32 | . . . 17 6 . 1 5 . . . 1 . . . . . . . . 2 . . . Heat Transferred 11749 | 222 1036 470 4033 1789 259 136 796 . . . 881 . . . . . 200 332 . 1545 50 . . Parts Sabotaged . | . . . . . . . . . . . . . . . . . . . . . . . . Parts Stolen . | . . . . . . . . . . . . . . . . . . . . . . . . Parts Stripped . | . . . . . . . . . . . . . . . . . . . . . . . . Power Chain Reactions 7 | . . . . 1 . . . . . . . . . . . . . . . 6 . . . Alert | -11 -10 -10 -9 -9 -9 -9 -6 -6 -6 -6 -5 -5 -5 -5 -5 -4 -4 -4 -4 -3 -2 -2 -2 ------- Run | Yrd Mat Min Mat Sto Rec Scr Fac Low Low Dat Pro Fac Upp Upp War Pro Fac Arm Lab Res Res Qua Frg Maximum Alert Level 4 | . . . 2 2 1 . . . . . . 3 . . . . 2 1 . 4 3 2 1 Low Security (%) 59 | 100 100 100 45 10 59 . 100 . . . . . . . . . 76 87 . 28 . . 27 Level 1 14 | . . . 32 26 40 . . . . . . . . . . . 18 12 . 16 . . 72 Level 2 15 | . . . 22 63 . . . . . . . 20 . . . . 4 . . 16 44 100 . Level 3 10 | . . . . . . . . . . . . 79 . . . . . . . 38 55 . . Level 4 . | . . . . . . . . . . . . . . . . . . . . . . . . Level 5 . | . . . . . . . . . . . . . . . . . . . . . . . . High Security . | . . . . . . . . . . . . . . . . . . . . . . . . Max Security . | . . . . . . . . . . . . . . . . . . . . . . . . Peak Influence 1110 | 10 73 85 516 592 334 . 41 . . . . 923 . . . . 444 264 . 1110 915 523 252 Initial 921 | . . 24 . 217 226 . . . . . . 921 . . . . . 174 . . 623 492 239 Average 221 | 1 14 13 221 395 137 . 5 . . . . 817 . . . . 71 109 . 474 728 484 210 Influence Increases 8751 | 15 387 193 1079 1047 290 . 233 75 5 . 160 961 . 90 486 . 500 619 . 1862 482 134 133 Destroy 0b10 Robot/C 3820 | . 200 140 660 480 80 . 80 60 . . 140 20 . 40 340 . 120 320 . 1020 120 . . Destroy 0b10 Robot/NC 415 | 15 20 10 100 95 20 . 10 5 5 . 10 5 . 5 25 . . . . 80 5 5 . Destroy Leader 804 | . 56 20 190 166 . . 42 10 . . 10 10 . . . . 20 40 . 220 20 . . Allied During Kill 305 | . . . . 185 40 . 11 . . . . . . . 61 . . 8 . . . . . Successful Hack 139 | . 15 . 49 38 . . 30 . . . . . . . . . . . . . 7 . . Select Force Hacks 240 | . 60 . 30 . 150 . . . . . . . . . . . . . . . . . . Disable Machine 510 | . 15 15 . 75 . . . . . . . . . . . . 120 45 . 75 60 90 15 Destroy Structure 1003 | . 21 8 35 8 . . 30 . . . . 26 . . . . 210 116 . 392 120 24 13 Advance Influence 900 | . . . . . . . . . . . . 900 . . . . . . . . . . . Partial Spotted 60 | . . . . . . . . . . . . . . . . . . 15 . . 30 . 15 Lose Combat Pursuer 555 | . . . 15 . . . 30 . . . . . . 45 60 . 30 75 . 75 120 15 90 Influence Decreases 8519 | 15 323 257 565 981 870 . 204 104 5 . 126 383 449 142 264 333 144 747 228 754 715 583 327 Entered New Map 2883 | . . 40 . 297 354 . . 11 . . . 13 227 32 111 333 . 182 228 . 485 383 187 Time Decay 4083 | 15 323 217 565 434 212 . 175 93 5 . 116 180 222 100 83 . 64 365 . 544 180 110 80 Search Patrol Dispatched 100 | . . . . . . . . . . . . 100 . . . . . . . . . . . Lost Part 700 | . . . . . . . . . . . 10 90 . 10 10 . 80 150 . 210 10 70 60 Lost Ally 319 | . . . . 100 20 . 29 . . . . . . . 60 . . 50 . . 40 20 . Purge Threat 434 | . . . . 150 284 . . . . . . . . . . . . . . . . . . Squads Dispatched 73 | . 4 . 2 7 . . 9 . . . . 5 . . . . 5 6 . 21 7 3 4 Investigation 26 | . 3 . 2 1 . . 5 . . . . 4 . . . . 1 . . 3 4 . 3 Extermination 17 | . . . . . . . 4 . . . . . . . . . 1 3 . 6 2 1 . Reinforcement 16 | . 1 . . 3 . . . . . . . . . . . . 1 3 . 5 . 2 1 Assault 9 | . . . . 2 . . . . . . . . . . . . 2 . . 4 1 . . Garrison 3 | . . . . 1 . . . . . . . . . . . . . . . 2 . . . Intercept 2 | . . . . . . . . . . . . 1 . . . . . . . 1 . . . Searches Triggered 1 | . . . . . . . . . . . . 1 . . . . . . . . . . . Construction Impeded 2 | . . . . . . . . . . . . . . . . . . . . 2 . . . Haulers Reinforced . | . . . . . . . . . . . . . . . . . . . . . . . . Active Scanning Responses . | . . . . . . . . . . . . . . . . . . . . . . . . Cargo Convoy Interrupts . | . . . . . . . . . . . . . . . . . . . . . . . . Stealth | -11 -10 -10 -9 -9 -9 -9 -6 -6 -6 -6 -5 -5 -5 -5 -5 -4 -4 -4 -4 -3 -2 -2 -2 --------- Run | Yrd Mat Min Mat Sto Rec Scr Fac Low Low Dat Pro Fac Upp Upp War Pro Fac Arm Lab Res Res Qua Frg Distress Signals 10 | . 1 . 1 1 . . . . . . . . . . 2 . . 1 . 2 1 . 1 Communications Jammed 20 | . . . . . . . . . . . 3 . . . . . . 17 . . . . . Distress Signals 16 | . . . . . . . . . . . . . . . . . . 16 . . . . . Times Spotted 362 | . 16 7 46 22 1 8 7 4 . 3 14 2 6 7 44 . 29 32 . 68 17 11 18 Peak Tracking Total 18 | . 2 3 5 4 2 4 2 3 . 3 4 2 5 5 9 . 18 9 . 6 9 9 10 Tactical Retreats 24 | . . . 1 . . . 2 . . . 1 . 3 1 1 . 2 4 . 3 3 1 2 ECM-based Alert Blocks 8 | . . . . . . . . . . . 1 . 6 . . . . 1 . . . . . Traps | -11 -10 -10 -9 -9 -9 -9 -6 -6 -6 -6 -5 -5 -5 -5 -5 -4 -4 -4 -4 -3 -2 -2 -2 ------- Run | Yrd Mat Min Mat Sto Rec Scr Fac Low Low Dat Pro Fac Upp Upp War Pro Fac Arm Lab Res Res Qua Frg Traps Triggered 11 | . 1 . 1 . . . . . . . . 2 . . . . 1 2 . 1 . 1 2 Indirectly 1 | . . . . . . . . . . . . . . . . . . . . 1 . . . Trap Hack Attempts . | . . . . . . . . . . . . . . . . . . . . . . . . Triggered . | . . . . . . . . . . . . . . . . . . . . . . . . Disarmed 1 | . . . . 1 . . . . . . . . . . . . . . . . . . . Reprogrammed . | . . . . . . . . . . . . . . . . . . . . . . . . Reused . | . . . . . . . . . . . . . . . . . . . . . . . . Traps Extracted . | . . . . . . . . . . . . . . . . . . . . . . . . Installed . | . . . . . . . . . . . . . . . . . . . . . . . . Triggered . | . . . . . . . . . . . . . . . . . . . . . . . . Machines | -11 -10 -10 -9 -9 -9 -9 -6 -6 -6 -6 -5 -5 -5 -5 -5 -4 -4 -4 -4 -3 -2 -2 -2 ---------- Run | Yrd Mat Min Mat Sto Rec Scr Fac Low Low Dat Pro Fac Upp Upp War Pro Fac Arm Lab Res Res Qua Frg Machines Disabled 40 | . 1 1 . 5 . 2 . . . . . . . . . 1 9 3 2 5 4 6 1 Max in Single Turn 5 | . 1 1 . 1 . 1 . . . . . . . . . 1 5 2 1 1 1 2 1 Garrison Access 1 | . . . . . . . . . . . . . . . . . 1 . . . . . . Machines Repaired . | . . . . . . . . . . . . . . . . . . . . . . . . Machines Dismantled . | . . . . . . . . . . . . . . . . . . . . . . . . Machines Sabotaged . | . . . . . . . . . . . . . . . . . . . . . . . . Overloaded Fab Kills . | . . . . . . . . . . . . . . . . . . . . . . . . Hacking | -11 -10 -10 -9 -9 -9 -9 -6 -6 -6 -6 -5 -5 -5 -5 -5 -4 -4 -4 -4 -3 -2 -2 -2 --------- Run | Yrd Mat Min Mat Sto Rec Scr Fac Low Low Dat Pro Fac Upp Upp War Pro Fac Arm Lab Res Res Qua Frg Machines Accessed 109 | . 8 . 16 11 10 5 12 1 1 4 . 5 . . 13 1 1 . 2 4 6 5 4 Terminals 47 | . 5 . 12 9 5 . 4 . 1 . . 1 . . . . . . . 1 3 5 1 Fabricators 1 | . . . . . . . 1 . . . . . . . . . . . . . . . . Repair Stations 5 | . 1 . 1 2 . . 1 . . . . . . . . . . . . . . . . Recycling Units 26 | . 2 . 1 . 5 . 4 . . . . 4 . . . . 1 . . 3 3 . 3 Scanalyzers 3 | . . . 2 . . . 1 . . . . . . . . . . . . . . . . Garrison Access 1 | . . . . . . . 1 . . . . . . . . . . . . . . . . Total Hacks 305 | . 18 . 41 29 21 42 25 1 1 28 . 8 . . 25 1 1 . 21 6 15 15 7 Successful 211 | . 10 . 19 20 10 42 18 1 1 28 . 3 . . 25 1 1 . 21 3 4 4 . Failed 92 | . 8 . 21 9 11 . 6 . . . . 5 . . . . . . . 3 11 11 7 Catastrophic 23 | . 1 . 2 1 4 . 2 . . . . 1 . . . . . . . 1 7 3 1 Database Lockouts 2 | . . . 1 . . . 1 . . . . . . . . . . . . . . . . Manual 101 | . 14 . 25 11 13 1 5 . . . . 6 . . 3 . 1 . . 5 11 . 6 Terminals 119 | . 13 . 32 22 16 . 7 . 1 . . 2 . . . . . . . 1 9 15 1 Fabricators 2 | . . . . . . . 2 . . . . . . . . . . . . . . . . Repair Stations 19 | . 2 . 4 7 . . 6 . . . . . . . . . . . . . . . . Recycling Units 37 | . 3 . 1 . 5 . 4 . . . . 6 . . . . 1 . . 5 6 . 6 Scanalyzers 7 | . . . 4 . . . 3 . . . . . . . . . . . . . . . . Garrison Access 3 | . . . . . . . 3 . . . . . . . . . . . . . . . . Terminal Hacks 155 | . 4 . 3 13 5 42 5 1 1 28 . . . . 25 1 . . 21 . 2 4 . Record 96 | . . . . . . 42 . . 1 11 . . . . 18 1 . . 21 . . 2 . Part Schematic 10 | . . . . 1 . . . . . 9 . . . . . . . . . . . . . Robot Schematic 5 | . . . . . . . . . . 5 . . . . . . . . . . . . . Robot Analysis 4 | . 3 . . . . . 1 . . . . . . . . . . . . . . . . Prototype ID Bank 8 | . . . . . . . . . . 3 . . . . 5 . . . . . . . . Open Door 7 | . . . . 3 . . . 1 . . . . . . 2 . . . . . 1 . . Open DSF 1 | . . . . . . . 1 . . . . . . . . . . . . . . . . Level Access Points 1 | . . . . . . . . . . . . . . . . . . . . . 1 . . Alert Level 6 | . . . 1 2 3 . . . . . . . . . . . . . . . . . . Unreport Threat 3 | . . . . 1 2 . . . . . . . . . . . . . . . . . . Locate Traps 4 | . . . 2 1 . . 1 . . . . . . . . . . . . . . . . Disarm Traps 1 | . . . . 1 . . . . . . . . . . . . . . . . . . . Maintenance Status 1 | . . . . 1 . . . . . . . . . . . . . . . . . . . Hauler Manifests 3 | . 1 . . 1 . . 1 . . . . . . . . . . . . . . . . Zone Layout 5 | . . . . 2 . . 1 . . . . . . . . . . . . . . 2 . Fabricator Hacks 1 | . . . . . . . 1 . . . . . . . . . . . . . . . . Network Status 1 | . . . . . . . 1 . . . . . . . . . . . . . . . . Repair Station Hacks 18 | . 2 . 4 6 . . 6 . . . . . . . . . . . . . . . . Scan Component 9 | . 1 . 2 3 . . 3 . . . . . . . . . . . . . . . . Repair 9 | . 1 . 2 3 . . 3 . . . . . . . . . . . . . . . . Recycling Unit Hacks . | . . . . . . . . . . . . . . . . . . . . . . . . Scanalyzer 3 | . . . 2 . . . 1 . . . . . . . . . . . . . . . . Retrieve Study 3 | . . . 2 . . . 1 . . . . . . . . . . . . . . . . Garrison Access Hacks . | . . . . . . . . . . . . . . . . . . . . . . . . Unauthorized Hacks 34 | . 4 . 10 1 5 . 5 . . . . 3 . . . . 1 . . 3 2 . . Terminals 12 | . 2 . 9 1 . . . . . . . . . . . . . . . . . . . Botnet 6 | . 2 . 3 1 . . . . . . . . . . . . . . . . . . . Operators 1 | . . . 1 . . . . . . . . . . . . . . . . . . . . Skim 5 | . . . 5 . . . . . . . . . . . . . . . . . . . . Fabricators 1 | . . . . . . . 1 . . . . . . . . . . . . . . . . Haulers 1 | . . . . . . . 1 . . . . . . . . . . . . . . . . Repair Stations . | . . . . . . . . . . . . . . . . . . . . . . . . Recycling Units 21 | . 2 . 1 . 5 . 4 . . . . 3 . . . . 1 . . 3 2 . . Tunnel 8 | . 2 . 1 . 5 . . . . . . . . . . . . . . . . . . Fedlink 12 | . . . . . . . 4 . . . . 3 . . . . 1 . . 3 1 . . Scrapoids 1 | . . . . . . . . . . . . . . . . . . . . . 1 . . Scanalyzers . | . . . . . . . . . . . . . . . . . . . . . . . . Garrison Access . | . . . . . . . . . . . . . . . . . . . . . . . . Data Cores Recovered 2 | . . . 1 1 . . . . . . . . . . . . . . . . . . . Used 1 | . . . . 1 . . . . . . . . . . . . . . . . . . . Hacking Detections 52 | . 6 . 13 8 5 . 4 . . . . 3 . . . . . . . 2 4 3 4 Full Trace Events 12 | . . . 1 2 2 . 1 . . . . 1 . . . . . . . . 2 . 3 Feedback Events 1 | . . . . . 1 . . . . . . . . . . . . . . . . . . Corruption 1 | . . . . . 1 . . . . . . . . . . . . . . . . . . Feedback Blocked . | . . . . . . . . . . . . . . . . . . . . . . . . Robot Schematics Acquired 5 | . . . . . . . . . . 5 . . . . . . . . . . . . . Robots Built . | . . . . . . . . . . . . . . . . . . . . . . . . Authchips . | . . . . . . . . . . . . . . . . . . . . . . . . Time . | . . . . . . . . . . . . . . . . . . . . . . . . Total Robot Build Rating . | . . . . . . . . . . . . . . . . . . . . . . . . Part Schematics Acquired 10 | . . . . 1 . . . . . 9 . . . . . . . . . . . . . Parts Built . | . . . . . . . . . . . . . . . . . . . . . . . . Authchips . | . . . . . . . . . . . . . . . . . . . . . . . . Time . | . . . . . . . . . . . . . . . . . . . . . . . . Total Part Build Rating . | . . . . . . . . . . . . . . . . . . . . . . . . Part Studies Acquired 3 | . . . 2 . . . 1 . . . . . . . . . . . . . . . . Parts Repaired 9 | . 1 . 2 3 . . 3 . . . . . . . . . . . . . . . . Time 420 | . 38 . 159 115 . . 108 . . . . . . . . . . . . . . . . Parts Recycled . | . . . . . . . . . . . . . . . . . . . . . . . . Recycled Matter . | . . . . . . . . . . . . . . . . . . . . . . . . Retrieved Matter . | . . . . . . . . . . . . . . . . . . . . . . . . Retrieved Components . | . . . . . . . . . . . . . . . . . . . . . . . . Parts Scanalyzed . | . . . . . . . . . . . . . . . . . . . . . . . . Part Schematics Acquired . | . . . . . . . . . . . . . . . . . . . . . . . . Parts Damaged . | . . . . . . . . . . . . . . . . . . . . . . . . Bothacking | -11 -10 -10 -9 -9 -9 -9 -6 -6 -6 -6 -5 -5 -5 -5 -5 -4 -4 -4 -4 -3 -2 -2 -2 ------------ Run | Yrd Mat Min Mat Sto Rec Scr Fac Low Low Dat Pro Fac Upp Upp War Pro Fac Arm Lab Res Res Qua Frg Used RIF Installer . | . . . . . . . . . . . . . . . . . . . . . . . . Robots Hacked . | . . . . . . . . . . . . . . . . . . . . . . . . Non-combat . | . . . . . . . . . . . . . . . . . . . . . . . . Combat . | . . . . . . . . . . . . . . . . . . . . . . . . Robot Hacks Applied . | . . . . . . . . . . . . . . . . . . . . . . . . Relay Couplers Released 5 | . . . . . . . 3 . . . . . . . . . 2 . . . . . . Machine Destruction 2 | . . . . . . . . . . . . . . . . . 2 . . . . . . Programmers 3 | . . . . . . . 3 . . . . . . . . . . . . . . . . Fabnet Peak Effective % . | . . . . . . . . . . . . . . . . . . . . . . . . Robots Rewired 9 | . . . . . . . . . . . . . . . 5 . . 4 . . . . . Allies Hacked 3 | . . . . . . . 1 . . . . . . . . . . 1 . . . 1 . Hacks Repelled . | . . . . . . . . . . . . . . . . . . . . . . . . Allies | -11 -10 -10 -9 -9 -9 -9 -6 -6 -6 -6 -5 -5 -5 -5 -5 -4 -4 -4 -4 -3 -2 -2 -2 -------- Run | Yrd Mat Min Mat Sto Rec Scr Fac Low Low Dat Pro Fac Upp Upp War Pro Fac Arm Lab Res Res Qua Frg Total Allies 26 | . . . . 12 . . . . . . . . . . 5 . . 4 . . 5 . . Largest Group 12 | . . . . 12 7 6 2 . . . . . . . 5 . . 4 . . 5 1 . Highest-Rated Group 320 | . . . . 145 105 97 57 . . . . . . . 267 . . 214 . . 320 64 . Highest-Rated Ally 64 | . . . . 31 31 31 31 . . . . . . . 64 . . 64 . . 64 64 . Initial UFD Resources 103 | . . . . . . . 24 42 42 42 44 44 60 60 60 63 63 73 73 76 96 103 103 Total Orders 3 | . . . . 1 . 2 . . . . . . . . . . . . . . . . . STAY 1 | . . . . . . 1 . . . . . . . . . . . . . . . . . FOLLOW 1 | . . . . . . 1 . . . . . . . . . . . . . . . . . EXPLORE 1 | . . . . 1 . . . . . . . . . . . . . . . . . . . Ally Attacks 175 | . . . . 79 9 17 16 . . . . . . . 35 . . 8 . . 9 2 . Total Damage 3613 | . . . . 1151 129 181 335 . . . . . . . 1259 . . 259 . . 253 46 . Kills 30 | . . . . 15 3 2 2 . . . . . . . 6 . . 1 . . 1 . . Allies Corrupted 3 | . . . . . . . . . . . . . . . . . . 2 . . 1 . . Allies Melted . | . . . . . . . . . . . . . . . . . . . . . . . . Intel | -11 -10 -10 -9 -9 -9 -9 -6 -6 -6 -6 -5 -5 -5 -5 -5 -4 -4 -4 -4 -3 -2 -2 -2 ------- Run | Yrd Mat Min Mat Sto Rec Scr Fac Low Low Dat Pro Fac Upp Upp War Pro Fac Arm Lab Res Res Qua Frg Active Infowar (turns) 17432 | 47 1568 1260 362 544 728 3321 1461 625 536 251 717 376 441 211 890 248 409 766 . 2135 356 176 4 Optics 5816 | . . . . . . . 484 625 536 251 717 376 303 211 890 248 409 766 . . . . . Sensors 10610 | . . 2 . 544 728 2278 1446 625 536 225 . 179 419 211 890 248 406 . . 1464 300 109 . Terrain 503 | . . . . . . . . . . . . . 301 202 . . . . . . . . . Structural 3150 | . . . . . . 1072 544 240 290 97 551 356 . . . . . . . . . . . Traps 72 | . . . . . . . . . . . . . . . . . . . . 72 . . . Seismic 3607 | 47 1564 1258 362 . . . . . . . . . . . . . . . . 376 . . . T.N.C. 4 | . 4 . . . . . . . . . . . . . . . . . . . . . . Cloaking 3776 | . . . . . . . . . . . 2 227 . . 268 248 409 766 . 1344 332 176 4 Jamming 1155 | . . . . . . . 182 . . 50 67 84 . 18 . . . 754 . . . . . ECM 241 | . . . . . . . 1 . . . 96 . 108 9 . . . 27 . . . . . Robot Analysis Total 154 | . 3 . . . . . 1 . . 150 . . . . . . . . . . . . . Derelict Logs Recovered 10 | . . 1 . . . . . 2 2 . 2 . 1 1 . 1 . . . . . . . Drone Launches 2 | . . . . 2 . . . . . . . . . . . . . . . . . . . Drone Recoveries . | . . . . . . . . . . . . . . . . . . . . . . . . Exploration | -11 -10 -10 -9 -9 -9 -9 -6 -6 -6 -6 -5 -5 -5 -5 -5 -4 -4 -4 -4 -3 -2 -2 -2 ------------- Run | Yrd Mat Min Mat Sto Rec Scr Fac Low Low Dat Pro Fac Upp Upp War Pro Fac Arm Lab Res Res Qua Frg Turns Passed 21003 | 140 1876 1261 2296 1068 732 3333 1464 625 536 251 717 376 478 211 890 248 409 873 231 2223 375 221 169 Spaces Moved 15613 | 86 1008 664 1535 647 647 2629 1169 540 478 156 413 416 467 274 1025 194 289 575 195 1034 478 392 302 Core 749 | 9 . . . . . 237 . . . . . 1 . . . . . 141 195 56 . . 110 Treads 1009 | . 11 . . . . . . . . . . . . . . . . . . 935 63 . . Legs 10739 | 77 997 664 1535 647 647 2392 1169 540 478 156 413 44 . . 63 194 289 434 . . . . . Wheels 580 | . . . . . . . . . . . . . 280 . 257 . . . . 43 . . . Hover 1537 | . . . . . . . . . . . . 371 187 274 705 . . . . . . . . Flight 999 | . . . . . . . . . . . . . . . . . . . . . 415 392 192 Fastest Speed 36 | 50 120 120 105 105 105 50 105 105 108 108 120 48 51 61 36 120 120 50 50 80 39 39 39 Average Speed 112 | 121 153 173 116 105 105 124 107 107 108 109 143 68 89 62 71 120 120 116 98 150 57 39 47 Slowest Speed 365 | 190 190 190 190 105 105 200 176 108 108 120 260 300 115 160 250 120 120 190 100 240 365 45 250 Overloaded Moves 30 | . . . . . . . . . . . . . . . 30 . . . . . . . . Propulsion Burnouts . | . . . . . . . . . . . . . . . . . . . . . . . . Robots Hopped 15 | . . . . . . . . . . . . . . . . . . . . . 10 5 . Potential Cave-ins 21 | . . . . . . . . . . . . . . . 1 . . 12 . . . . 8 Cave-ins Triggered 2 | . . . . . . . . . . . . . . . . . . . . 1 . . 1 Teleports 1 | . . . . . . . . . . . . . . . . . . . 1 . . . . Exploration Rate (%) 60 | 5 97 98 98 85 99 96 31 77 82 83 73 13 69 48 96 33 14 32 95 33 21 49 26 Regions Visited 23 Branch Regions 16 Pre-discovered Areas 35 | . 2 . 3 1 5 3 1 . . 19 . . 1 . . . . . . . . . . Known Exits Taken 15 | . . . 1 1 1 1 1 1 1 1 1 1 1 1 . 1 . 1 . . . 1 . Unknown Exits Taken 8 | 1 1 1 . . . . . . . . . . . . 1 . 1 . 1 1 1 . . Scrap Searched 15 | . . 1 . . . 5 . 3 2 . 1 . 3 . . . . . . . . . . Spaces Dug 191 | . 17 6 3 4 . . 28 11 5 1 8 14 12 9 . 5 11 19 . 21 9 3 5 Terrain Destroyed 970 | . 17 8 27 7 . . 34 29 6 1 53 14 12 9 211 5 133 127 . 229 35 7 6 Melee 78 | . . . . 4 . . 4 7 1 1 . 11 12 9 . 3 1 9 . 16 . . . Projectile 172 | . 17 8 3 . . . 30 4 5 . 12 3 . . 3 2 21 14 . 27 10 7 6 AOE 720 | . . . 24 3 . . . 18 . . 41 . . . 208 . 111 104 . 186 25 . . Terrain Rammed . | . . . . . . . . . . . . . . . . . . . . . . . . Walls Destroyed . | . . . . . . . . . . . . . . . . . . . . . . . . Machines Disabled . | . . . . . . . . . . . . . . . . . . . . . . . . Actions | -11 -10 -10 -9 -9 -9 -9 -6 -6 -6 -6 -5 -5 -5 -5 -5 -4 -4 -4 -4 -3 -2 -2 -2 --------- Run | Yrd Mat Min Mat Sto Rec Scr Fac Low Low Dat Pro Fac Upp Upp War Pro Fac Arm Lab Res Res Qua Frg Total 17807 | 110 1200 707 1867 910 684 2679 1306 564 488 205 489 471 495 294 1150 201 325 709 218 1418 551 441 325 Wait 637 | 5 47 4 123 161 17 4 33 . 1 28 23 2 1 2 5 . 3 19 . 106 32 9 12 Move 15563 | 85 1007 663 1534 646 646 2628 1168 539 477 155 412 415 466 273 1024 193 288 574 194 1033 460 382 301 Hop 11 | . . . . . . . . . . . . . . . . . . . . . 7 4 . Pick Up 108 | 8 16 2 19 7 2 9 13 1 . . 3 2 2 . 4 1 3 1 1 9 2 3 . Fast Attach 124 | 7 2 . 4 3 2 8 4 . 1 . 3 4 6 1 15 . 2 7 7 35 7 6 . Attach 66 | . . . 8 1 . . 7 . . 1 1 2 1 1 8 . 1 7 1 13 7 4 3 Detach 54 | . 2 . 7 1 1 . 2 . . . 1 . 1 2 8 . 1 1 2 11 11 1 2 Swap 203 | 1 31 9 36 15 . 9 24 6 1 . 9 6 . 1 5 2 3 4 . 40 1 . . Drop 169 | . 24 2 36 10 3 15 9 3 1 . 2 8 . . 17 . 5 2 3 21 5 3 . Fire 575 | 4 69 25 98 56 8 6 39 6 4 . 35 3 . 4 29 1 17 38 . 102 19 10 2 Melee 175 | . . . . 7 . . 6 9 3 21 . 23 18 10 . 4 1 17 10 46 . . . Ram 1 | . . . . . . . . . . . . . . . . . . 1 . . . . . Kick 14 | . 2 2 2 1 5 . 1 . . . . . . . . . 1 . . . . . . Crush 2 | . . . . . . . . . . . . . . . . . . . . 2 . . . Escape Stasis 30 | . . . . . . . . . . . . 6 . . . . . . . . . 19 5 Rewire 75 | . . . . 2 . . . . . . . . . . 35 . . 38 . . . . . Trap . | . . . . . . . . . . . . . . . . . . . . . . . . Miscellaneous . | . . . . . . . . . . . . . . . . . . . . . . . . Route ------- -11/Scrapyard -10/Materials (discovered 4 exits: *Mat x3 / [*Min]) -10/Mines (discovered 3 exits: *Mat x2 / [*Exi]) -9/Materials (discovered 5 exits: [*Mat x3] / [*Min] / *Sto) -9/Storage (discovered 2 exits: [*Mat] / *Rec) -9/Recycling (discovered 2 exits: [*Fac] / *Scr) -9/Scraptown (discovered 2 exits: *Fac x2) -6/Factory (discovered 4 exits: Fac x3 / *Low) -6/Lower Caves -6/Lower Caves (discovered 2 exits: *Fac / *Dat) -6/Data Miner -5/Proximity Caves -5/Factory (discovered 3 exits: Fac / *Upp x2) -5/Upper Caves -5/Upper Caves (discovered 2 exits: Fac / *War) -5/Warlord -4/Proximity Caves -4/Factory -4/Armory (discovered 2 exits: *Res / *Lab) -4/Lab -3/Research -2/Research (discovered 4 exits: Acc x3 / *Qua) -2/Quarantine (discovered 2 exits: *Sec / *Frg) -2/Protoforge History --------- Turn | Location | Event 9 | -11/Scrapyard | Discovered new exit (range 15) 141 | -11/Scrapyard | Entered Materials 300 | -10/Materials | Build established: Mutant 403 | -10/Materials | Discovered new exit (range 16) 633 | -10/Materials | Discovered new exit (range 10) 768 | -10/Materials | Build established: Scavenger-Mutant 841 | -10/Materials | Derelicts attacked the area 864 | -10/Materials | Discovered new exit (range 16) 1584 | -10/Materials | Discovered new exit (range 3) 1898 | -10/Materials | Repaired Imp. Heat Sink 2017 | -10/Materials | Entered Mines 2065 | -10/Mines | Met a Derelict bent on vengeance 2353 | -10/Mines | Deemed a non-threat by the Exiles lab entrance 2355 | -10/Mines | Discovered new exit (range 5) 2595 | -10/Mines | Learned Materials emergency access door positions 2755 | -10/Mines | Discovered new exit (range 6) 2811 | -10/Mines | Discovered new exit (range 10) 2896 | -10/Mines | Found a damaged Exp. Sensor Array with a note attached 2901 | -10/Mines | Found Prototype Device 2909 | -10/Mines | Identified Exp. Sensor Array 3278 | -10/Mines | Entered Materials 3278 | -9/Materials | Evolved 2 slots: Propulsion x1, Utility x1 3419 | -9/Materials | Discovered new exit (range 13) 3566 | -9/Materials | Identified exit to Storage 3918 | -9/Materials | Discovered new exit (range 10) 4070 | -9/Materials | Discovered new exit (range 11) 4174 | -9/Materials | Build established: Mutant 4499 | -9/Materials | Discovered new exit (range 4) 4589 | -9/Materials | Central database locked down 4663 | -9/Materials | Learned Materials emergency access door positions 4851 | -9/Materials | Learned Storage trap positions 4989 | -9/Materials | Build established: Scavenger-Mutant 4998 | -9/Materials | Discovered new exit (range 16) 5317 | -9/Materials | Build established: Mutant 5320 | -9/Materials | Repaired Exp. Sensor Array 5377 | -9/Materials | Repaired Adv. Beam Cannon 5574 | -9/Materials | Entered Storage 5575 | -9/Storage | Loaded intel: 5 trap records 5742 | -9/Storage | Met a pair of Derelict thieves 6036 | -9/Storage | Discovered new exit (range 26) 6134 | -9/Storage | Repaired Cooling System 6167 | -9/Storage | Repaired Lgt. EM Pulse Cannon 6262 | -9/Storage | Repaired Adv. Beam Cannon 6296 | -9/Storage | Assisted by bots powering up and referring to "LRC-V3" 6582 | -9/Storage | Build established: Commander-Mutant 6586 | -9/Storage | Garrison activated, responded to threat 6618 | -9/Storage | Used back door to open Recycling access 6618 | -9/Storage | Discovered new exit (range 4) 6621 | -9/Storage | Identified exit to Recycling 6622 | -9/Storage | Lost 5 allies 6642 | -9/Storage | Entered Recycling 6642 | -9/Recycling | Accompanied by 7 allies 7105 | -9/Recycling | Discovered new exit (range 16) 7332 | -9/Recycling | Scanned before Scraplab entrance 7346 | -9/Recycling | Entered Scraplab 7355 | -9/Recycling | Discovered new exit (range 3) 7356 | -9/Recycling | Identified exit to Scraptown 7374 | -9/Recycling | Entered Scraptown 7374 | -9/Scraptown | Accompanied by 6 allies 7374 | -9/Scraptown | System corruption cleaned by C-Scrubber 7690 | -9/Scraptown | Visited SPCMW 7725 | -9/Scraptown | Visited Symbiants 8100 | -9/Scraptown | Visited Comm Corps 8195 | -9/Scraptown | Visited The Evicted 8345 | -9/Scraptown | Discovered new exit (range 5) 8562 | -9/Scraptown | Visited Awakened 8611 | -9/Scraptown | Visited CPS Storage 8627 | -9/Scraptown | Visited Assassins FH 8684 | -9/Scraptown | Visited UFD Registry 8688 | -9/Scraptown | Registered with UFD as "Gunripper" 8739 | -9/Scraptown | Visited LU-1G1's Boring Crew 8816 | -9/Scraptown | Visited Scrap Suit Storage 8847 | -9/Scraptown | Visited Botcube Research 9167 | -9/Scraptown | Visited Observation Area 9241 | -9/Scraptown | Visited DA-N13 Charitable Foundation 9248 | -9/Scraptown | Found DCF Scrap (29 items) 9313 | -9/Scraptown | Visited Science Testing Area 9365 | -9/Scraptown | Visited Supply Room 9401 | -9/Scraptown | Visited Chapter 10 9464 | -9/Scraptown | Visited Cartography Club 9551 | -9/Scraptown | Learned location of Cetus (-4) 9551 | -9/Scraptown | Learned 8 Research zone layouts 9551 | -9/Scraptown | Learned 4 Recycling zone layouts 9551 | -9/Scraptown | Learned 12 Lower Caves zone layouts 9551 | -9/Scraptown | Learned 8 Upper Caves zone layouts 9551 | -9/Scraptown | Learned 16 Upper Caves zone layouts 9551 | -9/Scraptown | Learned location of 1 exit from Factory 9551 | -9/Scraptown | Learned location of 1 exit from Upper Caves 9551 | -9/Scraptown | Learned location of 3 exits from Upper Caves 9551 | -9/Scraptown | Identified exit to Factory 9612 | -9/Scraptown | Found Deep Structural Scanner 10552 | -9/Scraptown | Met Optimus 10552 | -9/Scraptown | Accepted into 0bPrime 10671 | -9/Scraptown | Civil war broke out across Scraptown 10707 | -9/Scraptown | Entered Factory 10707 | -6/Factory | Accompanied by 2 allies 10707 | -6/Factory | Evolved 6 slots: Propulsion x1, Utility x5 10708 | -6/Factory | Identified exit to Factory 10709 | -6/Factory | Identified exit to Lower Caves 10723 | -6/Factory | Lost 3 allies 10761 | -6/Factory | Identified exit to DSF 10789 | -6/Factory | Loaded intel: 8 recycling unit locations 10880 | -6/Factory | Central database locked down 11083 | -6/Factory | Repaired Imp. Aluminum Leg 11117 | -6/Factory | Repaired Imp. Aluminum Leg 11138 | -6/Factory | Build established: Infiltrator-Assassin 11163 | -6/Factory | Repaired Hvy. Missile Launcher 11417 | -6/Factory | Learned location of Protoforge (-2) 11471 | -6/Factory | Build established: Infiltrator-Skirmisher 12171 | -6/Factory | Spotted B-75 Beast 12171 | -6/Factory | Entered Lower Caves 12205 | -6/Lower Caves | Learned Factory emergency access door positions 12344 | -6/Lower Caves | Encountered a Warlord checkpoint 12435 | -6/Lower Caves | Identified exit to Lower Caves 12543 | -6/Lower Caves | Build established: Infiltrator-Assassin 12796 | -6/Lower Caves | Entered another Lower Caves area 12796 | -6/Lower Caves | Discovered exit to Factory (range 15) 12847 | -6/Lower Caves | Learned Factory emergency access door positions 12867 | -6/Lower Caves | Encountered a Warlord checkpoint 13010 | -6/Lower Caves | Build established: Derelict-Assassin 13181 | -6/Lower Caves | Identified exit to Data Miner 13332 | -6/Lower Caves | Entered Data Miner 13332 | -6/Data Miner | Discovered new exit (range 6) 13347 | -6/Data Miner | Met Data Miner 13393 | -6/Data Miner | Learned location of Section 7 (-2) 13393 | -6/Data Miner | Acquired the access code to Warlord's prototype stash 13429 | -6/Data Miner | Received God Mode back door access code from Data Miner 13456 | -6/Data Miner | Interfaced with the Data Conduit 13582 | -6/Data Miner | Identified exit to Proximity Caves 13583 | -6/Data Miner | Entered Proximity Caves 13674 | -5/Proximity Caves | Attracted the attention of an 0b10 checkpoint 13896 | -5/Proximity Caves | Spotter reported a threat 13914 | -5/Proximity Caves | Spotted B-75 Beast 13995 | -5/Proximity Caves | Learned Factory stockpile data 14024 | -5/Proximity Caves | Spotter reported a threat 14039 | -5/Proximity Caves | Spotter reported a threat 14077 | -5/Proximity Caves | Spotter reported a threat 14098 | -5/Proximity Caves | Spotter reported a threat 14151 | -5/Proximity Caves | Spotter reported a threat 14227 | -5/Proximity Caves | Build established: Infiltrator-Mutant 14230 | -5/Proximity Caves | Learned Factory stockpile data 14261 | -5/Proximity Caves | Spotter reported a threat 14277 | -5/Proximity Caves | Discovered exit to Factory (range 12) 14300 | -5/Proximity Caves | Entered Factory 14300 | -5/Factory | Evolved 2 slots: Power x1, Propulsion x1 14301 | -5/Factory | Identified exit to Upper Caves 14304 | -5/Factory | Loaded intel: 286 machine locations 14433 | -5/Factory | Loaded intel: 8 recycling unit locations 14600 | -5/Factory | Search patrols dispatched 14624 | -5/Factory | Discovered new exit (range 9) 14631 | -5/Factory | Intercept squad dispatched 14634 | -5/Factory | Spotted Tracker 14643 | -5/Factory | Spotted Combat Programmer 14662 | -5/Factory | Destroyed Tracker 14674 | -5/Factory | System corruption reached 10% 14676 | -5/Factory | Entered Upper Caves 14677 | -5/Upper Caves | Identified exit to Upper Caves 14678 | -5/Upper Caves | Attracted the attention of an 0b10 checkpoint 14704 | -5/Upper Caves | Lost 9 parts (2p2n4u1w) 15072 | -5/Upper Caves | Build established: Infiltrator-Assassin 15154 | -5/Upper Caves | Entered another Upper Caves area 15155 | -5/Upper Caves | Identified exit to Factory 15155 | -5/Upper Caves | Identified exit to Warlord 15322 | -5/Upper Caves | Spotted B-75 Beast 15360 | -5/Upper Caves | Core integrity fell below 50% 15365 | -5/Upper Caves | Entered Warlord 15386 | -5/Warlord | System corruption cleaned by Quarantine Array 15466 | -5/Warlord | Received a Watcher feed algorithm from an ecstatic Tinkerer 15556 | -5/Warlord | Learned Research trap positions 15558 | -5/Warlord | Learned 4 Armory zone layouts 15558 | -5/Warlord | Learned 4 Armory zone layouts 15559 | -5/Warlord | Learned Factory scanalyzer intel 15559 | -5/Warlord | Learned Armory terminal intel 15559 | -5/Warlord | Learned Research terminal intel 15559 | -5/Warlord | Learned Research garrison access intel 15667 | -5/Warlord | Visited the Vortex Lab 15675 | -5/Warlord | Found Prototype Energy Gun 15675 | -5/Warlord | Identified Vortex Shotgun 15678 | -5/Warlord | Found Vortex Shotgun 15683 | -5/Warlord | Warlord's base attacked by MAIN.C 15803 | -5/Warlord | Opened Warlord's prototype stash 15811 | -5/Warlord | Found Vortex Chain Reactor 15815 | -5/Warlord | Found Exp. Cloaking Device 15822 | -5/Warlord | Found Prototype Hackware 15822 | -5/Warlord | Identified Ghost Barrier 15833 | -5/Warlord | Found Exp. Focal Shield 15902 | -5/Warlord | Rebuked by Warlord 15986 | -5/Warlord | Opened side exit 16017 | -5/Warlord | Spotted Striker 16033 | -5/Warlord | Warlord forces counterattacked 16057 | -5/Warlord | Spotted Striker 16071 | -5/Warlord | Spotted Striker 16093 | -5/Warlord | Allies destroyed Striker 16094 | -5/Warlord | Spotted Striker 16109 | -5/Warlord | Spotted Striker 16111 | -5/Warlord | Destroyed Striker 16122 | -5/Warlord | Spotted Striker 16125 | -5/Warlord | Destroyed Striker 16131 | -5/Warlord | Discovered new exit (range 20) 16153 | -5/Warlord | Lost 12 allies 16255 | -5/Warlord | Entered Proximity Caves 16262 | -4/Proximity Caves | Lost 14 allies 16298 | -4/Proximity Caves | Build established: Hacker-Mutant 16329 | -4/Proximity Caves | Learned Research security intel 16483 | -4/Proximity Caves | Found Alien Artifact 16498 | -4/Proximity Caves | Discovered exit to Factory (range 4) 16503 | -4/Proximity Caves | Entered Factory 16503 | -4/Factory | Evolved 2 slots: Propulsion x1, Utility x1 16506 | -4/Factory | Loaded intel: 243 machine locations 16507 | -4/Factory | Loaded intel: 4 scanalyzer locations 16779 | -4/Factory | Loaded intel: 8 recycling unit locations 16779 | -4/Factory | Watched by a mysterious "MATRIX" hacker. 16798 | -4/Factory | Spotted B-86 Titan 16898 | -4/Factory | Discovered new exit (range 10) 16912 | -4/Factory | Entered Armory 16913 | -4/Armory | Identified exit to Lab 16914 | -4/Armory | Loaded intel: 101 machine locations 16915 | -4/Armory | Loaded intel: 14 terminal locations 16943 | -4/Armory | Lost 8 parts (3n4u1w) 17230 | -4/Armory | Build established: Infiltrator-Mutant 17326 | -4/Armory | P-70 Sage assimilated allied Archangel 7a 17386 | -4/Armory | System corruption reached 10% 17705 | -4/Armory | Identified Dimensional Node Initializer 17705 | -4/Armory | Initialized slip node 17720 | -4/Armory | Core integrity fell below 50% 17759 | -4/Armory | Discovered new exit (range 4) 17781 | -4/Armory | Lost 12 parts (2p3n6u1w) 17782 | -4/Armory | Core integrity fell below 20% 17785 | -4/Armory | Entered Lab 17785 | -4/Lab | Discovered new exit (range 9) 17797 | -4/Lab | Hidden lab's door opened automatically 17797 | -4/Lab | Sensor layout match revealed 17797 | -4/Lab | Decrypted terminal 17798 | -4/Lab | Gained access to the hidden lab's interior 17831 | -4/Lab | Found Alien Artifact 17831 | -4/Lab | Identified Transdimensional Reconstructor 17831 | -4/Lab | Warped through subspace 17853 | -4/Lab | Decrypted terminal 17853 | -4/Lab | Acquired modification code for an L2 power cell 17866 | -4/Lab | Found Prototype Energy Cannon 17866 | -4/Lab | Identified Potential Cannon 17869 | -4/Lab | Found Prototype Energy Gun 17869 | -4/Lab | Identified Tachyon Dispersion Ray 17872 | -4/Lab | Found Prototype Protection 17872 | -4/Lab | Identified Exp. Powered Armor 17875 | -4/Lab | Found Prototype Hackware 17875 | -4/Lab | Identified Quantum Router 17899 | -4/Lab | Found Alien Artifact 17899 | -4/Lab | Identified Core Regenerator 17899 | -4/Lab | Used Core Regenerator, restored core integrity (+287) 17908 | -4/Lab | Found Alien Artifact 17908 | -4/Lab | Identified Integrated Mediator 17908 | -4/Lab | Installed Integrated Mediator, increased core attachment efficiency 18002 | -4/Lab | Found Alien Artifact 18010 | -4/Lab | Decrypted terminal 18016 | -4/Lab | Entered Research 18016 | -3/Research | Evolved 2 slots: Weapon x2 18018 | -3/Research | Loaded intel: 69 trap records 18020 | -3/Research | Loaded intel: 140 machine locations 18021 | -3/Research | Loaded intel: 23 terminal locations 18022 | -3/Research | Loaded intel: 4 garrison access locations 18160 | -3/Research | Build established: Hacker-Mutant 18484 | -3/Research | Build established: Hacker-Tank 18573 | -3/Research | Loaded intel: 5 recycling unit locations 18580 | -3/Research | Found Centrium Heavy Armor Plating 18681 | -3/Research | Found Fusion Bomb Launcher 18781 | -3/Research | System corruption reached 10% 18807 | -3/Research | Build established: Scavenger-Tank 19163 | -3/Research | Intercept squad dispatched 19202 | -3/Research | Spotted Tracker 19213 | -3/Research | Destroyed Tracker 19240 | -3/Research | Found Exp. Targeting Computer 19255 | -3/Research | Spotted Combat Programmer 19266 | -3/Research | Destroyed Combat Programmer 19516 | -3/Research | First assault squad dispatched 19572 | -3/Research | Crushed by falling debris 19603 | -3/Research | Lost 3 parts (1n2u) 19740 | -3/Research | Found Gamma Bomb Array 19855 | -3/Research | Found Prototype Processor 19855 | -3/Research | Identified Exp. Target Analyzer 19944 | -3/Research | System corruption reached 30% 20091 | -3/Research | Lost 7 parts (1p2n1u3w) 20131 | -3/Research | Garrison activated, responded to threat 20226 | -3/Research | Discovered new exit (range 8) 20239 | -3/Research | Entered another Research area 20239 | -2/Research | Evolved 2 slots: Utility x2 20240 | -2/Research | Loaded intel: 123 machine locations 20451 | -2/Research | Loaded intel: 4 recycling unit locations 20489 | -2/Research | First assault squad dispatched 20528 | -2/Research | Identified exit to Access 20580 | -2/Research | Scrapoids reinforcements arrived? 20596 | -2/Research | Discovered new exit (range 8) 20614 | -2/Research | Entered Quarantine 20614 | -2/Quarantine | Accompanied by 1 ally 20615 | -2/Quarantine | Loaded intel: 74 machine locations 20628 | -2/Quarantine | Found Alien Artifact 20628 | -2/Quarantine | Identified Subatomic Replicator 20642 | -2/Quarantine | Found Alien Energy Cannon 20642 | -2/Quarantine | Identified Core Cannon 20684 | -2/Quarantine | Found Alien Slashing Weapon 20684 | -2/Quarantine | Identified Sigix Broadsword 20750 | -2/Quarantine | Scanned by Researcher 20765 | -2/Quarantine | System corruption reached 10% 20782 | -2/Quarantine | Found Alien Artifact 20785 | -2/Quarantine | Found Alien Artifact 20785 | -2/Quarantine | Identified Terrabomb (x2) 20785 | -2/Quarantine | Used Terrabomb 20802 | -2/Quarantine | Spotted Fortress 20826 | -2/Quarantine | Lost 7 parts (2p2u3w) 20831 | -2/Quarantine | Discovered new exit (range 6) 20831 | -2/Quarantine | Discovered new exit (range 6) 20833 | -2/Quarantine | Identified exit to Section 7 20835 | -2/Quarantine | Identified exit to Protoforge 20835 | -2/Quarantine | Entered Protoforge 20836 | -2/Protoforge | Loaded intel: 380 machine locations 20857 | -2/Protoforge | Used Terrabomb 20859 | -2/Protoforge | Superfortress began startup sequence 20920 | -2/Protoforge | Core integrity fell below 50% 20931 | -2/Protoforge | Spotted Hotshot 20931 | -2/Protoforge | Spotted Hotshot 20937 | -2/Protoforge | Crushed by falling debris 20949 | -2/Protoforge | Spotted EXE-6 20949 | -2/Protoforge | Spotted EXE-6 20962 | -2/Protoforge | Spotted Decapitator 20962 | -2/Protoforge | Spotted Decapitator 20968 | -2/Protoforge | Lost 4 parts (2n2u) 20999 | -2/Protoforge | Core integrity fell below 20% 21001 | -2/Protoforge | Spotted EXE-6 21001 | -2/Protoforge | Spotted EXE-6 21004 | -2/Protoforge | Destroyed by EXE-6 with Concept XC Strikerail Last Messages --------------- 20940_ Beam penetrates Earth. 20950_ System corrupted: Heat flow error (+125). 20954_ The unstable cave ceiling collapses. 20982_ Connecting with Recycling Unit... 20982_ ALERT: Suspicious activity at Recycling Unit F003. Dispatching Investigation squad. 20985_ Connecting with Recycling Unit... 20985_ ALERT: Suspicious activity at Recycling Unit F002. Dispatching Investigation squad. 20988_ Connecting with Recycling Unit... 20988_ ALERT: Suspicious activity at Recycling Unit F001. Dispatching Investigation squad. 20992_ System corrupted: IFF burst signal emitted. 20992_ Penetrated by Slug. 20992_ Machine disabled. 20994_ Penetrated by Slug. 21000_ Adv. Signal Interpreter destroyed. 21002_ EXE-6 springs to life. 21003_ Penetrated by Slug. [Achievement: I Was Wrong!] Map ----- +----------------------------------------------------+ | ??"??"??????"""??""???????"?????"??????????"""???? | | ????????"???"????""????"?""????????????????""""??? | | """""""?????????????"??"??"?"??????????????"F""??? | | """"""""""????""??"""???????"????????????????""??? | | """""""""""???""??????"?"???"???????????????"""??? | | """"""""""""?????????""?""?""???"???????????""???? | | """""""""""""?????""????????????"?"???????"??????? | | """"""""""""""???""???????????"?"?""?????""?"""""" | | """""""""""""""????????"???"??"?"???"F?""????????? | | """"""""""""""""??"???"""?????"?"???"""""????????? | | """"""""""""""""??""????""" ??"?"???"""""????????? | | """"""""""""""""??""???" "" "?"????????????????? | | """""""""""""""""??""??? "?"????????????????? | | """"""""""""""""" " "???"" "" "?"????????????????? | | """"""""""""""""" ? ??? " " "#???????????????? | | """"""""""""""""" "" " #???????????????? | | """"""""""""""""" " " """ #???????????????? | | """"""""""""""""" "" ##??????????????? | | """"""""""""""""" m " E#??????????????? | | """"""""""""""""" " "" "" E#??????????????? | | """"""""""""""""" " "" " #???????????????? | | """""""""""""""" "" " " "#???????????????? | | """""""""""""""" """ " #???????????????? | | """""""""""""""" "" """ #???????????????? | | """"""""""""""" " " #???????????????? | | """"""""""""""m "" " "@ "" #???????????????? | | """"""""""""" " " """" #???????????????? | | """""""""""" " " " """ #???????????????? | | """""""""""m "" " " "" #???????????????? | | """""""""" "" "" " "" #???????????????? | | """"""" "" "" #???????????????? | | "" "" "" """ """ #???????????????? | | " "" "" "" """" #???????????????? | | " " " " """" #???????????????? | | " """" """" " "" """ "" #???????????????? | | "" """""""""" "" #???????????????? | | """ " #???????????????? | | """ " """ " "" """" #???????????????? | | " " "" "" " "" #???????????????? | | """" " "" "" "" #???????????????? | | " """ " " " "" #???????????????? | | """" "" " #???????????????? | | " " #???????????????? | | """""""""" """ #???????????????? | | " """ #???????????????? | | """""""""" " " """""""#???????????????? | | ?#?????#############+++###########???????????????? | | """"??????"""""#"" ""#?????????????????????? | | ?????????????###" "###???????????????????? | | ?????????????#"" ""#???????????????????? | +----------------------------------------------------+ Best States ------------- Heat Dissipation 88 Energy Generation 55 Energy Capacity 1040 Matter Stores 300 Matter Capacity 300 Sight Range 22 Robot Scan Range 20 Terrain Scan Range 16 Terrain Scan Density 10 ECM Strength 1 Jamming Range 14 Cloak Strength 4 Armor Coverage 1200 Resistance: TH 10 Resistance: EM 25 Evasion (%) 62 Targeting Accuracy 12 Melee Accuracy 5 Target Analysis 6 Recoil Reduction 6 Particle Charging 15 Salvage Targeting 4 Offensive Hacking 10 Defensive Hacking 25 Authchip Count 1 Item Schematics ----------------- Imp. Targeting Computer | -9/Storage | Hacked Combat Drone Bay | -6/Data Miner | Free Lgt. Regenerative Plating | -6/Data Miner | Free Cld. Gravmag System | -6/Data Miner | Free Imp. Energy Well | -6/Data Miner | Free Kinetic Spear | -6/Data Miner | Free Adv. Surge Thruster | -6/Data Miner | Free Imp. Point Defense System | -6/Data Miner | Free Adv. Concussive RPG | -6/Data Miner | Free Imp. Force Booster | -6/Data Miner | Free Robot Schematics ------------------ A-15 Conveyor | -6/Data Miner | Free B-48 Gladiator | -6/Data Miner | Free G-50 Soldier | -6/Data Miner | Free H-66 Slayer | -6/Data Miner | Free G-67 Veteran | -6/Data Miner | Free Fabricated ------------ Nothing Repaired ---------- Imp. Heat Sink | 32% | -10/Materials Exp. Sensor Array | 62% | -9/Materials Adv. Beam Cannon | 40% | -9/Materials Cooling System | 70% | -9/Storage Lgt. EM Pulse Cannon | 12% | -9/Storage Adv. Beam Cannon | 43% | -9/Storage Imp. Aluminum Leg | 61% | -6/Factory Imp. Aluminum Leg | 70% | -6/Factory Hvy. Missile Launcher | 69% | -6/Factory Studied --------- Aluminum Leg | -9/Materials | Hacked Imp. Ion Engine | -9/Materials | Hacked VSS Leg | -6/Factory | Hacked Alien Tech Used ----------------- Dimensional Node Initializer Transdimensional Reconstructor Core Regenerator Integrated Mediator Subatomic Replicator Core Cannon Sigix Broadsword Terrabomb Achievements -------------- Decrypted! Hulk Smash I Was Wrong! Link The Feds Nope Super-what Now? Uncivil War Unlimited Data Challenges ------------ None Game ------ Seed RingCobblerReplica Manual? 0 Play Time 03:31:41 Cumulative 247.5 hours Start 2026.04.27 @ 16:24:23 End 2026.04.28 @ 00:02:47 Sessions 6 Manual Loads 0 Difficulty Rogue Special Mode None Game No. 123 Rogue 119 Adventurer 4 Explorer 0 Win Type - Total 6 Types 3/0/1/1/0/0/0/1/0/0 Lore% 76 Gallery% 65 Achievement% 51 Wizard Run 0 Options --------- Layout 0 ASCII 0 Keyboard 1 Movement Vi Keybinds 0 Fullscreen 1 Font 24/Crisp Map View 76x50 Zoom Use 0% Tactical HUD 1 Map Filters NONE Filters NONE Steam 1 RUN: 1ab74a71-691d-432e-9793-f8cdfe351f85